[Event "Titled Tuesday Blitz July 25 Late 2023"]
[White "Campos, Maria Jose"]
[Black "dorpato"]
[WhiteFideId "146803"]
[WhiteElo "2355"]
[BlackElo "2029"]
[Result "1-0"]
[Round "4"]
[TimeControl "180+2"]
[Date "2023.07.25"]
[WhiteClock "0:01:12"]
[BlackClock "0:00:01"]
[Board "191"]

1. c4 {[%clk 0:02:58]}  e5 {[%clk 0:02:58]} 2. g3 {[%clk 0:02:59]}  Nc6 {[%clk 0:02:56]} 3. Bg2 {[%clk 0:02:59]}  d6 {[%clk 0:02:50]} 4. Nc3 {[%clk 0:02:59]}  g6 {[%clk 0:02:48]} 5. e4 {[%clk 0:02:58]}  Bg7 {[%clk 0:02:39]} 6. Nge2 {[%clk 0:02:58]}  Be6 {[%clk 0:02:31]} 7. d3 {[%clk 0:02:57]}  Qd7 {[%clk 0:02:28]} 8. h3 {[%clk 0:02:56]}  Nge7 {[%clk 0:02:20]} 9. Rb1 {[%clk 0:02:56]}  O-O {[%clk 0:02:09]} 10. b4 {[%clk 0:02:55]}  f5 {[%clk 0:02:02]} 11. exf5 {[%clk 0:02:54]}  Nxf5 {[%clk 0:01:59]} 12. O-O {[%clk 0:02:53]}  Nfd4 {[%clk 0:01:50]} 13. Kh2 {[%clk 0:02:49]}  Nf3+ {[%clk 0:01:46]} 14. Bxf3 {[%clk 0:02:48]}  Rxf3 {[%clk 0:01:45]} 15. Ng1 {[%clk 0:02:48]}  Rff8 {[%clk 0:01:33]} 16. Be3 {[%clk 0:02:45]}  Ne7 {[%clk 0:01:31]} 17. Ne4 {[%clk 0:02:41]}  Nf5 {[%clk 0:01:28]} 18. Qe2 {[%clk 0:02:35]}  Rf7 {[%clk 0:01:23]} 19. Ng5 {[%clk 0:02:34]}  Rff8 {[%clk 0:01:22]} 20. b5 {[%clk 0:02:32]}  Rf6 {[%clk 0:01:13]} 21. a4 {[%clk 0:02:30]}  Raf8 {[%clk 0:01:12]} 22. Nxe6 {[%clk 0:02:22]}  Qxe6 {[%clk 0:01:12]} 23. a5 {[%clk 0:02:21]}  Nxe3 {[%clk 0:01:08]} 24. fxe3 {[%clk 0:02:20]}  Bh6 {[%clk 0:01:02]} 25. e4 {[%clk 0:02:17]}  Be3 {[%clk 0:00:35]} 26. Rxf6 {[%clk 0:02:14]}  Bxg1+ {[%clk 0:00:35]} 27. Kxg1 {[%clk 0:02:12]}  Rxf6 {[%clk 0:00:31]} 28. Kg2 {[%clk 0:02:11]}  Qf7 {[%clk 0:00:24]} 29. Rb2 {[%clk 0:02:09]}  h5 {[%clk 0:00:21]} 30. Qe3 {[%clk 0:02:08]}  b6 {[%clk 0:00:16]} 31. axb6 {[%clk 0:02:07]}  axb6 {[%clk 0:00:16]} 32. h4 {[%clk 0:02:06]}  Kg7 {[%clk 0:00:15]} 33. Ra2 {[%clk 0:02:04]}  Rf1 {[%clk 0:00:15]} 34. Ra7 {[%clk 0:01:58]}  Rb1 {[%clk 0:00:14]} 35. Qe2 {[%clk 0:01:56]}  Rb3 {[%clk 0:00:11]} 36. Ra8 {[%clk 0:01:53]}  Qd7 {[%clk 0:00:10]} 37. Ra7 {[%clk 0:01:52]}  Rb1 {[%clk 0:00:09]} 38. Qf2 {[%clk 0:01:48]}  Rb3 {[%clk 0:00:07]} 39. Qe2 {[%clk 0:01:45]}  Qe7 {[%clk 0:00:07]} 40. Ra8 {[%clk 0:01:42]}  Qf6 {[%clk 0:00:07]} 41. Rc8 {[%clk 0:01:39]}  Qf7 {[%clk 0:00:07]} 42. Qc2 {[%clk 0:01:35]}  Ra3 {[%clk 0:00:07]} 43. Qb2 {[%clk 0:01:33]}  Ra7 {[%clk 0:00:06]} 44. Qd2 {[%clk 0:01:26]}  Ra3 {[%clk 0:00:07]} 45. Rb8 {[%clk 0:01:24]}  Ra1 {[%clk 0:00:07]} 46. Qe2 {[%clk 0:01:24]}  Ra5 {[%clk 0:00:07]} 47. Rd8 {[%clk 0:01:23]}  Ra3 {[%clk 0:00:07]} 48. Rc8 {[%clk 0:01:22]}  Qd7 {[%clk 0:00:07]} 49. Rb8 {[%clk 0:01:20]}  Rb3 {[%clk 0:00:06]} 50. Ra8 {[%clk 0:01:19]}  Rb4 {[%clk 0:00:06]} 51. Qc2 {[%clk 0:01:17]}  Qf7 {[%clk 0:00:05]} 52. Ra1 {[%clk 0:01:17]}  Qe6 {[%clk 0:00:03]} 53. Rf1 {[%clk 0:01:15]}  Qg4 {[%clk 0:00:03]} 54. Rf2 {[%clk 0:01:13]}  Kh6 {[%clk 0:00:02]} 55. Qd2+ {[%clk 0:01:13]}  Kg7 {[%clk 0:00:01]} 56. Qxb4 {[%clk 0:01:12]} 1-0


[Site "https://www.chess.com"]

[Event "Titled Tuesday Blitz July 25 Late 2023"]
[White "Vifleemskaia, Svetlana"]
[Black "Lutz, Igor Oscar"]
[WhiteFideId "4129490"]
[BlackFideId "2110806"]
[WhiteElo "2309"]
[BlackElo "1937"]
[Result "1-0"]
[Round "4"]
[TimeControl "180+2"]
[Date "2023.07.25"]
[WhiteClock "0:00:04"]
[BlackClock "0:00:08"]
[Board "196"]

1. d4 {[%clk 0:02:59]}  d5 {[%clk 0:02:51]} 2. c4 {[%clk 0:02:59]}  c6 {[%clk 0:02:50]} 3. cxd5 {[%clk 0:02:59]}  cxd5 {[%clk 0:02:51]} 4. Bf4 {[%clk 0:03:00]}  Bf5 {[%clk 0:02:49]} 5. Nc3 {[%clk 0:02:59]}  a6 {[%clk 0:02:50]} 6. Qb3 {[%clk 0:02:58]}  Nc6 {[%clk 0:02:31]} 7. e3 {[%clk 0:02:48]}  Nf6 {[%clk 0:02:11]} 8. Qxb7 {[%clk 0:02:43]}  Rc8 {[%clk 0:02:10]} 9. Bxa6 {[%clk 0:02:29]}  e6 {[%clk 0:02:06]} 10. Nf3 {[%clk 0:02:22]}  Nb4 {[%clk 0:01:52]} 11. Bb5+ {[%clk 0:02:11]}  Nd7 {[%clk 0:01:44]} 12. Ne5 {[%clk 0:02:09]}  Nc2+ {[%clk 0:01:42]} 13. Kd2 {[%clk 0:02:09]}  Rc7 {[%clk 0:01:26]} 14. Bxd7+ {[%clk 0:01:44]}  Qxd7 {[%clk 0:01:10]} 15. Nxd7 {[%clk 0:01:03]}  Rxb7 {[%clk 0:01:09]} 16. Nxf8 {[%clk 0:00:51]}  Rxf8 {[%clk 0:01:08]} 17. b3 {[%clk 0:00:35]}  Ke7 {[%clk 0:00:55]} 18. Rac1 {[%clk 0:00:31]}  Nb4 {[%clk 0:00:54]} 19. h3 {[%clk 0:00:28]}  Ra8 {[%clk 0:00:49]} 20. a4 {[%clk 0:00:27]}  Nd3 {[%clk 0:00:46]} 21. Ra1 {[%clk 0:00:24]}  Rxb3 {[%clk 0:00:43]} 22. Rhc1 {[%clk 0:00:12]}  Nxc1 {[%clk 0:00:39]} 23. Rxc1 {[%clk 0:00:11]}  Rb2+ {[%clk 0:00:38]} 24. Ke1 {[%clk 0:00:10]}  Rc8 {[%clk 0:00:34]} 25. g4 {[%clk 0:00:08]}  Be4 {[%clk 0:00:26]} 26. Bg3 {[%clk 0:00:08]}  Rc2 {[%clk 0:00:20]} 27. Rxc2 {[%clk 0:00:06]}  Bxc2 {[%clk 0:00:21]} 28. Kd2 {[%clk 0:00:05]}  Bxa4 {[%clk 0:00:21]} 29. Nxa4 {[%clk 0:00:04]}  Ra8 {[%clk 0:00:21]} 30. Nc5 {[%clk 0:00:05]}  Ra2+ {[%clk 0:00:21]} 31. Ke1 {[%clk 0:00:06]}  Ra1+ {[%clk 0:00:22]} 32. Ke2 {[%clk 0:00:06]}  Rh1 {[%clk 0:00:22]} 33. Kf3 {[%clk 0:00:07]}  Rxh3 {[%clk 0:00:22]} 34. Kg2 {[%clk 0:00:08]}  Rh6 {[%clk 0:00:22]} 35. Bf4 {[%clk 0:00:08]}  Rg6 {[%clk 0:00:22]} 36. Kf3 {[%clk 0:00:07]}  f6 {[%clk 0:00:18]} 37. Nd3 {[%clk 0:00:07]}  f5 {[%clk 0:00:10]} 38. g5 {[%clk 0:00:07]}  h6 {[%clk 0:00:10]} 39. Ne5 {[%clk 0:00:06]}  Rxg5 {[%clk 0:00:08]} 40. Bxg5+ {[%clk 0:00:06]}  hxg5 {[%clk 0:00:09]} 41. Kg3 {[%clk 0:00:06]}  Kf6 {[%clk 0:00:09]} 42. f4 {[%clk 0:00:06]}  g6 {[%clk 0:00:08]} 43. Nd7+ {[%clk 0:00:05]}  Kf7 {[%clk 0:00:08]} 44. Ne5+ {[%clk 0:00:05]}  Kf6 {[%clk 0:00:08]} 45. Nf3 {[%clk 0:00:05]}  gxf4+ {[%clk 0:00:09]} 46. exf4 {[%clk 0:00:04]}  g5 {[%clk 0:00:10]} 47. Nxg5 {[%clk 0:00:04]}  Ke7 {[%clk 0:00:08]} 48. Kh4 {[%clk 0:00:04]}  Kd6 {[%clk 0:00:09]} 49. Kh5 {[%clk 0:00:04]}  Kc6 {[%clk 0:00:10]} 50. Nxe6 {[%clk 0:00:04]}  Kb5 {[%clk 0:00:10]} 51. Kg6 {[%clk 0:00:04]}  Kc4 {[%clk 0:00:08]} 52. Kxf5 {[%clk 0:00:04]} 1-0


[Site "https://www.chess.com"]

[Event "Titled Tuesday Blitz July 25 Late 2023"]
[White "Kollars, Dmitrij"]
[Black "Nakamura, Hikaru"]
[WhiteFideId "12909572"]
[BlackFideId "2016192"]
[WhiteElo "2985"]
[BlackElo "3274"]
[Result "1-0"]
[Round "5"]
[TimeControl "180+2"]
[Date "2023.07.25"]
[WhiteClock "0:00:08"]
[BlackClock "0:00:01"]
[Board "1"]

1. e4 {[%clk 0:02:42]}  a6 {[%clk 0:03:00]} 2. d4 {[%clk 0:02:40]}  c6 {[%clk 0:02:59]} 3. Bd3 {[%clk 0:02:32]}  d5 {[%clk 0:02:59]} 4. exd5 {[%clk 0:02:31]}  cxd5 {[%clk 0:02:58]} 5. c3 {[%clk 0:02:31]}  Nc6 {[%clk 0:02:56]} 6. Bf4 {[%clk 0:02:31]}  g6 {[%clk 0:02:56]} 7. Nf3 {[%clk 0:02:30]}  Bf5 {[%clk 0:02:55]} 8. O-O {[%clk 0:02:29]}  e6 {[%clk 0:02:50]} 9. Re1 {[%clk 0:02:28]}  Bxd3 {[%clk 0:02:45]} 10. Qxd3 {[%clk 0:02:29]}  Bg7 {[%clk 0:02:45]} 11. Nbd2 {[%clk 0:02:27]}  Nge7 {[%clk 0:02:43]} 12. h4 {[%clk 0:02:19]}  h6 {[%clk 0:02:38]} 13. Re2 {[%clk 0:02:18]}  O-O {[%clk 0:02:37]} 14. Rae1 {[%clk 0:02:17]}  Rc8 {[%clk 0:02:27]} 15. Nf1 {[%clk 0:02:13]}  Nf5 {[%clk 0:02:24]} 16. g3 {[%clk 0:01:59]}  Nd6 {[%clk 0:02:00]} 17. h5 {[%clk 0:01:55]}  g5 {[%clk 0:01:55]} 18. Bxd6 {[%clk 0:01:48]}  Qxd6 {[%clk 0:01:56]} 19. N1h2 {[%clk 0:01:43]}  b5 {[%clk 0:01:56]} 20. a3 {[%clk 0:01:42]}  Rb8 {[%clk 0:01:52]} 21. Ng4 {[%clk 0:01:41]}  a5 {[%clk 0:01:52]} 22. b4 {[%clk 0:01:35]}  axb4 {[%clk 0:01:52]} 23. axb4 {[%clk 0:01:35]}  Ne7 {[%clk 0:01:44]} 24. Ra1 {[%clk 0:01:13]}  Qc7 {[%clk 0:01:34]} 25. Rea2 {[%clk 0:01:09]}  Nc8 {[%clk 0:01:33]} 26. Ra5 {[%clk 0:01:07]}  Nd6 {[%clk 0:01:33]} 27. Kg2 {[%clk 0:01:01]}  Rfc8 {[%clk 0:01:23]} 28. R5a3 {[%clk 0:00:54]}  Ne4 {[%clk 0:01:03]} 29. Nfe5 {[%clk 0:00:46]}  f5 {[%clk 0:00:43]} 30. Ne3 {[%clk 0:00:42]}  Bxe5 {[%clk 0:00:40]} 31. dxe5 {[%clk 0:00:36]}  Qxe5 {[%clk 0:00:41]} 32. Nd1 {[%clk 0:00:23]}  f4 {[%clk 0:00:35]} 33. f3 {[%clk 0:00:20]}  Nxg3 {[%clk 0:00:34]} 34. Qg6+ {[%clk 0:00:19]}  Qg7 {[%clk 0:00:34]} 35. Qxe6+ {[%clk 0:00:19]}  Qf7 {[%clk 0:00:20]} 36. Qxh6 {[%clk 0:00:19]}  Qxh5 {[%clk 0:00:20]} 37. Qe6+ {[%clk 0:00:17]}  Qf7 {[%clk 0:00:20]} 38. Qh6 {[%clk 0:00:16]}  Qg7 {[%clk 0:00:10]} 39. Qe6+ {[%clk 0:00:16]}  Qf7 {[%clk 0:00:09]} 40. Qh6 {[%clk 0:00:16]}  Nf5 {[%clk 0:00:03]} 41. Qxg5+ {[%clk 0:00:14]}  Qg7 {[%clk 0:00:03]} 42. Qxg7+ {[%clk 0:00:14]}  Kxg7 {[%clk 0:00:04]} 43. Ra6 {[%clk 0:00:09]}  Rh8 {[%clk 0:00:02]} 44. Rc6 {[%clk 0:00:06]}  Rb7 {[%clk 0:00:02]} 45. Raa6 {[%clk 0:00:05]}  Re7 {[%clk 0:00:03]} 46. Re6 {[%clk 0:00:05]}  Rxe6 {[%clk 0:00:03]} 47. Rxe6 {[%clk 0:00:06]}  Ra8 {[%clk 0:00:03]} 48. Re5 {[%clk 0:00:07]}  Ra2+ {[%clk 0:00:03]} 49. Kh3 {[%clk 0:00:06]}  Kf6 {[%clk 0:00:04]} 50. Rxd5 {[%clk 0:00:07]}  Ne3 {[%clk 0:00:05]} 51. Nxe3 {[%clk 0:00:06]}  fxe3 {[%clk 0:00:05]} 52. Kg3 {[%clk 0:00:06]}  e2 {[%clk 0:00:04]} 53. Kf2 {[%clk 0:00:07]}  Rc2 {[%clk 0:00:02]} 54. Rc5 {[%clk 0:00:07]}  Ke6 {[%clk 0:00:02]} 55. Ke1 {[%clk 0:00:07]}  Kd6 {[%clk 0:00:02]} 56. Rxb5 {[%clk 0:00:08]}  Ke6 {[%clk 0:00:01]} 57. Rc5 {[%clk 0:00:08]} 1-0


[Site "https://www.chess.com"]

[Event "Titled Tuesday Blitz July 25 Late 2023"]
[White "Sjugirov, Sanan"]
[Black "Erigaisi Arjun"]
[WhiteFideId "4189302"]
[BlackFideId "35009192"]
[WhiteElo "2935"]
[BlackElo "3094"]
[Result "1-0"]
[Round "5"]
[TimeControl "180+2"]
[Date "2023.07.25"]
[WhiteClock "0:00:04"]
[BlackClock "0:00:12"]
[Board "3"]

1. e4 {[%clk 0:03:00]}  c6 {[%clk 0:02:50]} 2. d4 {[%clk 0:03:00]}  d5 {[%clk 0:02:51]} 3. Nc3 {[%clk 0:03:00]}  dxe4 {[%clk 0:02:50]} 4. Nxe4 {[%clk 0:03:01]}  Bf5 {[%clk 0:02:51]} 5. Ng3 {[%clk 0:03:01]}  Bg6 {[%clk 0:02:52]} 6. Nf3 {[%clk 0:03:00]}  Nd7 {[%clk 0:02:49]} 7. Bd3 {[%clk 0:03:00]}  e6 {[%clk 0:02:47]} 8. O-O {[%clk 0:03:00]}  Ngf6 {[%clk 0:02:46]} 9. Re1 {[%clk 0:02:59]}  Bd6 {[%clk 0:02:45]} 10. c4 {[%clk 0:02:54]}  Qc7 {[%clk 0:02:41]} 11. Bg5 {[%clk 0:02:50]}  O-O-O {[%clk 0:02:35]} 12. a3 {[%clk 0:02:27]}  Kb8 {[%clk 0:02:24]} 13. b4 {[%clk 0:02:24]}  Bf4 {[%clk 0:02:14]} 14. Bf1 {[%clk 0:02:01]}  h5 {[%clk 0:02:02]} 15. Bh4 {[%clk 0:01:51]}  e5 {[%clk 0:01:52]} 16. Ne2 {[%clk 0:01:42]}  Bh6 {[%clk 0:01:49]} 17. Qb3 {[%clk 0:01:27]}  Rde8 {[%clk 0:01:34]} 18. Nxe5 {[%clk 0:01:00]}  Nxe5 {[%clk 0:01:33]} 19. dxe5 {[%clk 0:01:01]}  Ne4 {[%clk 0:01:34]} 20. Nc3 {[%clk 0:00:55]}  Nd2 {[%clk 0:01:24]} 21. Qb2 {[%clk 0:00:50]}  Nxf1 {[%clk 0:01:22]} 22. Rxf1 {[%clk 0:00:26]}  Qxe5 {[%clk 0:01:11]} 23. Bg3 {[%clk 0:00:16]}  Bf4 {[%clk 0:01:11]} 24. Bxf4 {[%clk 0:00:14]}  Qxf4 {[%clk 0:01:12]} 25. b5 {[%clk 0:00:13]}  Ka8 {[%clk 0:01:05]} 26. bxc6 {[%clk 0:00:11]}  bxc6 {[%clk 0:01:06]} 27. Rac1 {[%clk 0:00:06]}  h4 {[%clk 0:01:04]} 28. h3 {[%clk 0:00:06]}  Bd3 {[%clk 0:01:02]} 29. Rfe1 {[%clk 0:00:05]}  Bxc4 {[%clk 0:00:58]} 30. Rxe8+ {[%clk 0:00:02]}  Rxe8 {[%clk 0:00:59]} 31. Rd1 {[%clk 0:00:02]}  Rb8 {[%clk 0:00:57]} 32. Qa1 {[%clk 0:00:02]}  Qe5 {[%clk 0:00:54]} 33. Re1 {[%clk 0:00:02]}  Qf6 {[%clk 0:00:53]} 34. Qc1 {[%clk 0:00:02]}  Bd3 {[%clk 0:00:44]} 35. Ne4 {[%clk 0:00:03]}  Bxe4 {[%clk 0:00:38]} 36. Rxe4 {[%clk 0:00:03]}  g5 {[%clk 0:00:38]} 37. Rc4 {[%clk 0:00:03]}  Rb6 {[%clk 0:00:37]} 38. a4 {[%clk 0:00:04]}  Kb7 {[%clk 0:00:31]} 39. a5 {[%clk 0:00:04]}  Rb5 {[%clk 0:00:31]} 40. a6+ {[%clk 0:00:05]}  Kc7 {[%clk 0:00:27]} 41. Re4 {[%clk 0:00:03]}  Qd6 {[%clk 0:00:25]} 42. Re1 {[%clk 0:00:03]}  Qc5 {[%clk 0:00:22]} 43. Qd2 {[%clk 0:00:03]}  Kb6 {[%clk 0:00:20]} 44. Qd8+ {[%clk 0:00:03]}  Kxa6 {[%clk 0:00:20]} 45. Qc8+ {[%clk 0:00:03]}  Ka5 {[%clk 0:00:19]} 46. Ra1+ {[%clk 0:00:03]}  Kb4 {[%clk 0:00:19]} 47. Qg4+ {[%clk 0:00:03]}  Kb3 {[%clk 0:00:17]} 48. Qf3+ {[%clk 0:00:03]}  Kb2 {[%clk 0:00:17]} 49. Qd1 {[%clk 0:00:03]}  Ra5 {[%clk 0:00:11]} 50. Rb1+ {[%clk 0:00:03]}  Kc3 {[%clk 0:00:11]} 51. Rb3+ {[%clk 0:00:03]}  Kc4 {[%clk 0:00:12]} 52. Qd3# {[%clk 0:00:04]} 1-0


[Site "https://www.chess.com"]

[Event "Titled Tuesday Blitz July 25 Late 2023"]
[White "Fedoseev, Vladimir"]
[Black "Maksimovic, Bojan"]
[WhiteFideId "24130737"]
[BlackFideId "14408120"]
[WhiteElo "3073"]
[BlackElo "2899"]
[Result "0-1"]
[Round "5"]
[TimeControl "180+2"]
[Date "2023.07.25"]
[WhiteClock "0:00:00"]
[BlackClock "0:00:02"]
[Board "4"]

1. g3 {[%clk 0:01:10]}  g6 {[%clk 0:02:56]} 2. Bg2 {[%clk 0:01:11]}  Bg7 {[%clk 0:02:57]} 3. Nf3 {[%clk 0:01:11]}  Nf6 {[%clk 0:02:57]} 4. O-O {[%clk 0:01:12]}  O-O {[%clk 0:02:57]} 5. d3 {[%clk 0:01:12]}  d6 {[%clk 0:02:57]} 6. Nbd2 {[%clk 0:01:12]}  Nbd7 {[%clk 0:02:58]} 7. a3 {[%clk 0:01:11]}  a5 {[%clk 0:02:52]} 8. c4 {[%clk 0:01:09]}  e5 {[%clk 0:02:52]} 9. Qc2 {[%clk 0:01:07]}  a4 {[%clk 0:02:51]} 10. d4 {[%clk 0:00:50]}  Re8 {[%clk 0:02:43]} 11. dxe5 {[%clk 0:00:50]}  dxe5 {[%clk 0:02:44]} 12. c5 {[%clk 0:00:44]}  e4 {[%clk 0:02:34]} 13. Nd4 {[%clk 0:00:43]}  e3 {[%clk 0:02:32]} 14. fxe3 {[%clk 0:00:39]}  c6 {[%clk 0:02:08]} 15. h3 {[%clk 0:00:30]}  Qe7 {[%clk 0:02:06]} 16. Nc4 {[%clk 0:00:26]}  Qxc5 {[%clk 0:01:28]} 17. Bd2 {[%clk 0:00:26]}  Ne5 {[%clk 0:01:14]} 18. Rac1 {[%clk 0:00:22]}  Nxc4 {[%clk 0:01:04]} 19. Qxc4 {[%clk 0:00:23]}  Qxc4 {[%clk 0:01:04]} 20. Rxc4 {[%clk 0:00:23]}  Nd5 {[%clk 0:01:05]} 21. Kf2 {[%clk 0:00:20]}  Nf6 {[%clk 0:00:54]} 22. Rfc1 {[%clk 0:00:14]}  Ne4+ {[%clk 0:00:44]} 23. Bxe4 {[%clk 0:00:14]}  Rxe4 {[%clk 0:00:45]} 24. h4 {[%clk 0:00:14]}  Re8 {[%clk 0:00:43]} 25. Rb4 {[%clk 0:00:13]}  h5 {[%clk 0:00:39]} 26. Nf3 {[%clk 0:00:12]}  Bf8 {[%clk 0:00:37]} 27. Rf4 {[%clk 0:00:11]}  Bh6 {[%clk 0:00:29]} 28. Rd4 {[%clk 0:00:11]}  Bg4 {[%clk 0:00:26]} 29. e4 {[%clk 0:00:09]}  Bg7 {[%clk 0:00:18]} 30. Rb4 {[%clk 0:00:09]}  Re7 {[%clk 0:00:14]} 31. Bg5 {[%clk 0:00:09]}  f6 {[%clk 0:00:15]} 32. Bf4 {[%clk 0:00:08]}  Bf8 {[%clk 0:00:15]} 33. Rd4 {[%clk 0:00:07]}  Rae8 {[%clk 0:00:13]} 34. Nd2 {[%clk 0:00:06]}  f5 {[%clk 0:00:09]} 35. Bd6 {[%clk 0:00:05]}  Rd7 {[%clk 0:00:08]} 36. e5 {[%clk 0:00:04]}  Bg7 {[%clk 0:00:08]} 37. Nc4 {[%clk 0:00:04]}  Kh7 {[%clk 0:00:05]} 38. e3 {[%clk 0:00:03]}  b5 {[%clk 0:00:03]} 39. Nb6 {[%clk 0:00:02]}  Rb7 {[%clk 0:00:01]} 40. Rxc6 {[%clk 0:00:03]}  Rd8 {[%clk 0:00:02]} 41. Nd5 {[%clk 0:00:00]}  Rbd7 {[%clk 0:00:02]} 0-1


[Site "https://www.chess.com"]

[Event "Titled Tuesday Blitz July 25 Late 2023"]
[White "Naroditsky, Daniel"]
[Black "Dardha, Daniel"]
[WhiteFideId "2026961"]
[BlackFideId "240990"]
[WhiteElo "3146"]
[BlackElo "2877"]
[Result "1/2-1/2"]
[Round "5"]
[TimeControl "180+2"]
[Date "2023.07.25"]
[WhiteClock "0:00:52"]
[BlackClock "0:01:11"]
[Board "10"]

1. d4 {[%clk 0:03:00]}  d5 {[%clk 0:02:59]} 2. Nc3 {[%clk 0:03:00]}  Nf6 {[%clk 0:02:56]} 3. Bf4 {[%clk 0:03:01]}  c5 {[%clk 0:02:54]} 4. e4 {[%clk 0:03:01]}  Nxe4 {[%clk 0:02:50]} 5. Nxe4 {[%clk 0:03:01]}  dxe4 {[%clk 0:02:51]} 6. dxc5 {[%clk 0:03:02]}  Qa5+ {[%clk 0:02:51]} 7. c3 {[%clk 0:03:03]}  Qxc5 {[%clk 0:02:51]} 8. Qa4+ {[%clk 0:03:03]}  Nc6 {[%clk 0:02:51]} 9. Qxe4 {[%clk 0:03:04]}  g6 {[%clk 0:02:51]} 10. Nf3 {[%clk 0:03:04]}  Bg7 {[%clk 0:02:51]} 11. Rd1 {[%clk 0:03:05]}  O-O {[%clk 0:02:47]} 12. Be3 {[%clk 0:03:05]}  Qa5 {[%clk 0:02:44]} 13. Bc4 {[%clk 0:03:05]}  Bf5 {[%clk 0:02:33]} 14. Qh4 {[%clk 0:03:05]}  Ne5 {[%clk 0:02:31]} 15. Nxe5 {[%clk 0:02:49]}  Qxe5 {[%clk 0:02:31]} 16. O-O {[%clk 0:02:40]}  Bf6 {[%clk 0:02:28]} 17. Qg3 {[%clk 0:02:39]}  Rfd8 {[%clk 0:02:18]} 18. Qxe5 {[%clk 0:02:04]}  Bxe5 {[%clk 0:02:18]} 19. h3 {[%clk 0:02:04]}  h5 {[%clk 0:02:16]} 20. Bd5 {[%clk 0:01:59]}  Rd7 {[%clk 0:01:51]} 21. Bf3 {[%clk 0:01:59]}  Rad8 {[%clk 0:01:47]} 22. Rxd7 {[%clk 0:01:47]}  Rxd7 {[%clk 0:01:48]} 23. Re1 {[%clk 0:01:35]}  a6 {[%clk 0:01:42]} 24. Rd1 {[%clk 0:01:14]}  Rxd1+ {[%clk 0:01:41]} 25. Bxd1 {[%clk 0:01:15]}  Be4 {[%clk 0:01:38]} 26. Bf3 {[%clk 0:01:11]}  Bxf3 {[%clk 0:01:36]} 27. gxf3 {[%clk 0:01:11]}  Kg7 {[%clk 0:01:36]} 28. Kf1 {[%clk 0:01:12]}  Kf6 {[%clk 0:01:36]} 29. Ke2 {[%clk 0:01:12]}  Kf5 {[%clk 0:01:36]} 30. Kd3 {[%clk 0:01:11]}  Bf4 {[%clk 0:01:11]} 31. c4 {[%clk 0:00:52]} 1/2-1/2


[Site "https://www.chess.com"]

[Event "Titled Tuesday Blitz July 25 Late 2023"]
[White "Grischuk, Alexander"]
[Black "Zhigalko, Sergei"]
[WhiteFideId "4126025"]
[BlackFideId "13502956"]
[WhiteElo "3030"]
[BlackElo "2872"]
[Result "1/2-1/2"]
[Round "5"]
[TimeControl "180+2"]
[Date "2023.07.25"]
[WhiteClock "0:00:04"]
[BlackClock "0:00:07"]
[Board "12"]

1. d4 {[%clk 0:02:58]}  Nf6 {[%clk 0:03:00]} 2. Bf4 {[%clk 0:02:56]}  e6 {[%clk 0:02:59]} 3. e3 {[%clk 0:02:52]}  b6 {[%clk 0:02:52]} 4. Nf3 {[%clk 0:02:50]}  Bb7 {[%clk 0:02:51]} 5. Nbd2 {[%clk 0:02:44]}  Nh5 {[%clk 0:02:48]} 6. Bg5 {[%clk 0:02:42]}  Be7 {[%clk 0:02:48]} 7. h4 {[%clk 0:02:35]}  h6 {[%clk 0:02:35]} 8. Bxe7 {[%clk 0:02:35]}  Qxe7 {[%clk 0:02:36]} 9. g4 {[%clk 0:02:28]}  Nf6 {[%clk 0:02:31]} 10. Rg1 {[%clk 0:02:28]}  Ne4 {[%clk 0:02:07]} 11. Nxe4 {[%clk 0:02:01]}  Bxe4 {[%clk 0:02:08]} 12. Bd3 {[%clk 0:02:01]}  Bb7 {[%clk 0:01:54]} 13. c3 {[%clk 0:01:55]}  d6 {[%clk 0:01:53]} 14. Qe2 {[%clk 0:01:52]}  Nd7 {[%clk 0:01:31]} 15. Ba6 {[%clk 0:01:52]}  Bxa6 {[%clk 0:01:24]} 16. Qxa6 {[%clk 0:01:53]}  O-O {[%clk 0:01:22]} 17. g5 {[%clk 0:01:50]}  h5 {[%clk 0:01:20]} 18. O-O-O {[%clk 0:01:44]}  g6 {[%clk 0:01:16]} 19. Nd2 {[%clk 0:01:39]}  d5 {[%clk 0:01:03]} 20. e4 {[%clk 0:01:34]}  c6 {[%clk 0:00:59]} 21. f4 {[%clk 0:01:30]}  dxe4 {[%clk 0:00:47]} 22. Nxe4 {[%clk 0:01:30]}  Rfc8 {[%clk 0:00:47]} 23. Rge1 {[%clk 0:01:19]}  Rc7 {[%clk 0:00:45]} 24. Kb1 {[%clk 0:01:16]}  b5 {[%clk 0:00:33]} 25. Qa5 {[%clk 0:00:30]}  Rac8 {[%clk 0:00:26]} 26. a3 {[%clk 0:00:23]}  Kg7 {[%clk 0:00:20]} 27. Qb4 {[%clk 0:00:20]}  Nb6 {[%clk 0:00:17]} 28. Nf6 {[%clk 0:00:18]}  Nd5 {[%clk 0:00:09]} 29. Nxd5 {[%clk 0:00:14]}  cxd5 {[%clk 0:00:09]} 30. Qxe7 {[%clk 0:00:06]}  Rxe7 {[%clk 0:00:10]} 31. Kc2 {[%clk 0:00:05]}  a5 {[%clk 0:00:09]} 32. Kd3 {[%clk 0:00:04]}  Rec7 {[%clk 0:00:09]} 33. Ra1 {[%clk 0:00:03]}  Kf8 {[%clk 0:00:06]} 34. Reb1 {[%clk 0:00:02]}  Ke7 {[%clk 0:00:05]} 35. Ra2 {[%clk 0:00:02]}  Rc4 {[%clk 0:00:05]} 36. Rba1 {[%clk 0:00:02]}  Kd6 {[%clk 0:00:04]} 37. Rb1 {[%clk 0:00:01]}  Kd7 {[%clk 0:00:04]} 38. Rba1 {[%clk 0:00:02]}  R8c7 {[%clk 0:00:05]} 39. Rb1 {[%clk 0:00:02]}  Kc8 {[%clk 0:00:05]} 40. Rba1 {[%clk 0:00:03]}  Kb7 {[%clk 0:00:06]} 41. Rb1 {[%clk 0:00:03]}  Kb6 {[%clk 0:00:06]} 42. Rba1 {[%clk 0:00:03]}  R4c6 {[%clk 0:00:06]} 43. Kd2 {[%clk 0:00:03]}  Rc4 {[%clk 0:00:06]} 44. Kd3 {[%clk 0:00:03]}  Rc8 {[%clk 0:00:07]} 45. Kd2 {[%clk 0:00:04]}  R8c7 {[%clk 0:00:07]} 46. Kd3 {[%clk 0:00:04]} 1/2-1/2


[Site "https://www.chess.com"]